[Event "44th Chess Olympiad Open 2022"]
[Site "Chennai"]
[Date "2022.08.02"]
[Round "5.38"]
[White "Laohawirapap, Prin"]
[Black "Stoyanov, Tsvetan"]
[Result "1/2-1/2"]
[WhiteElo "2230"]
[BlackElo "2450"]
[Annotator "RC"]
[PlyCount "129"]
[EventDate "2022.??.??"]
[TimeControl "60"]

1. e4 {[%emt 0:32:21]} c5 {[%emt 0:00:14]} 2. Nf3 {[%emt 0:00:07]} d6 {[%emt 0:
00:00]} 3. d4 {[%emt 0:00:16]} cxd4 {[%emt 0:00:06]} 4. Nxd4 {[%emt 0:00:07]}
Nf6 {[%emt 0:00:13]} 5. Nc3 {[%emt 0:00:07]} a6 {[%emt 0:00:05]} 6. Be3 {
[%emt 0:00:07]} e5 {[%emt 0:00:12]} 7. Nb3 {[%emt 0:00:06]} Be6 {[%emt 0:00:16]
} 8. f3 {[%emt 0:00:05]} h5 {[%emt 0:00:16]} 9. Nd5 {[%emt 0:00:05]} Bxd5 {
[%emt 0:00:23]} 10. exd5 {[%emt 0:00:07]} Nbd7 {[%emt 0:00:15]} 11. Qd2 {
[%emt 0:00:07]} g6 {[%emt 0:00:24]} 12. O-O-O {[%emt 0:00:12]} Nb6 {[%emt 0:00:
00]} 13. Kb1 {[%emt 0:00:11]} Nbxd5 {[%emt 0:12:23]} 14. Bg5 {[%emt 0:00:42]}
Be7 {[%emt 0:00:47]} 15. Bd3 {[%emt 0:02:16]} O-O {[%emt 0:30:21]} 16. h4 {
[%emt 0:00:20]} Nf4 {[%emt 0:20:28]} 17. Bxf4 {[%emt 0:22:42]} exf4 {[%emt 0:
00:00]} 18. Qxf4 {[%emt 0:04:29]} Re8 {[%emt 0:00:39]} 19. g4 {[%emt 0:23:26]}
Bf8 {[%emt 0:04:28]} 20. Bc4 {[%emt 0:08:03]} d5 {[%emt 0:03:57]} 21. Qg5 {
[%emt 0:05:02]} Nxg4 {[%emt 0:03:03]} 22. Rxd5 {[%emt 0:01:33]} Qxg5 {[%emt 0:
00:00]} 23. Rxg5 {[%emt 0:00:05]} Ne5 {[%emt 0:01:26]} 24. Bd5 {[%emt 0:00:05]}
Bh6 {[%emt 0:00:13]} 25. Rg2 {[%emt 0:01:02]} Re7 {[%emt 0:04:14]} 26. Re2 {
[%emt 0:10:36]} Rae8 {[%emt 0:01:33]} 27. Rhe1 {[%emt 0:00:22]} b6 {[%emt 0:00:
00]} 28. c4 {[%emt 0:05:40]} Nc6 {[%emt 0:02:43]} 29. Rxe7 {[%emt 0:07:43]}
Rxe7 30. Rxe7 {[%emt 0:00:56]} Nxe7 31. Bb7 {[%emt 0:00:05]} a5 {[%emt 0:01:57]
} 32. a4 {[%emt 0:04:05]} Bf4 {[%emt 0:02:38]} 33. c5 {[%emt 0:03:27]} g5 {
[%emt 0:01:02]} 34. cxb6 {[%emt 0:00:20]} gxh4 {[%emt 0:00:04]} 35. Ba6 {
[%emt 0:00:04]} h3 {[%emt 0:00:04]} 36. Bf1 {[%emt 0:00:06]} h2 {[%emt 0:00:02]
} 37. Bg2 {[%emt 0:00:04]} Nf5 {[%emt 0:02:35]} 38. Nc1 {[%emt 0:01:12]} Nd6 {
[%emt 0:01:14]} 39. b4 {[%emt 0:00:37]} axb4 {[%emt 0:00:36]} 40. Nd3 {[%emt 0:
00:00]} Be3 {[%emt 0:00:28]} 41. a5 {[%emt 0:00:47]} b3 {[%emt 0:18:17]} 42. f4
{[%emt 0:24:28]} Nc4 {[%emt 0:07:55]} 43. b7 {[%emt 0:00:06]} Ba7 {[%emt 0:00:
00]} 44. a6 {[%emt 0:00:07]} Kf8 {[%emt 0:01:05]} 45. Nb4 {[%emt 0:01:42]} Na5
{[%emt 0:02:02]} 46. Nd5 {[%emt 0:00:30]} Nc4 {[%emt 0:01:17]} 47. Nc7 {
[%emt 0:01:31]} Nd6 {[%emt 0:00:20]} 48. Kb2 {[%emt 0:00:31]} Ke7 {[%emt 0:00:
00]} 49. Kxb3 {[%emt 0:00:49]} Kd7 {[%emt 0:00:52]} 50. Nd5 {[%emt 0:00:07]}
Nf5 {[%emt 0:00:37]} 51. Nb6+ {[%emt 0:03:19]} Kc7 {[%emt 0:00:41]} 52. Nc8 {
[%emt 0:00:22]} Be3 {[%emt 0:01:43]} 53. a7 {[%emt 0:01:41]} Bxa7 54. Nxa7 {
[%emt 0:00:11]} Ng3 {[%emt 0:00:01]} 55. Nb5+ {[%emt 0:00:56]} Kb8 {[%emt 0:00:
00]} 56. Nd6 {[%emt 0:00:18]} h1=Q {[%emt 0:01:08]} 57. Bxh1 {[%emt 0:00:07]}
Nxh1 58. Nxf7 {[%emt 0:00:06]} Kxb7 {[%emt 0:00:04]} 59. Ng5 {[%emt 0:00:06]}
Ng3 {[%emt 0:00:09]} 60. Kc4 {[%emt 0:00:27]} Kc6 {[%emt 0:00:03]} 61. Kd4 {
[%emt 0:00:06]} Ne2+ {[%emt 0:00:11]} 62. Ke3 {[%emt 0:00:05]} Nxf4 {[%emt 0:
00:00]} 63. Kxf4 {[%emt 0:00:03]} h4 {[%emt 0:00:04]} 64. Kf3 {[%emt 0:00:04]}
h3 {[%emt 0:00:03]} 65. Nxh3 {[%emt 0:00:04]} 1/2-1/2

[Event "44th Chess Olympiad Open 2022"]
[Site "Chennai"]
[Date "2022.08.02"]
[Round "5.38"]
[White "Saeheng, Boonsueb"]
[Black "Tashev, Aleksandar"]
[Result "0-1"]
[WhiteElo "2063"]
[BlackElo "2262"]
[Annotator "RC"]
[PlyCount "62"]
[EventDate "2022.??.??"]
[TimeControl "60"]

1. d4 {[%emt 0:00:06]} d5 {[%emt 0:00:30]} 2. c4 {[%emt 0:00:21]} e6 {[%emt 0:
00:00]} 3. Nc3 {[%emt 0:00:20]} Nf6 {[%emt 0:00:29]} 4. Nf3 {[%emt 0:01:01]} c6
{[%emt 0:00:51]} 5. e3 {[%emt 0:04:20]} Nbd7 {[%emt 0:00:34]} 6. Qc2 {[%emt 0:
00:00]} Bd6 {[%emt 0:01:22]} 7. e4 {[%emt 0:03:02]} dxe4 {[%emt 0:25:33]} 8.
Nxe4 {[%emt 0:02:10]} Nxe4 {[%emt 0:00:48]} 9. Qxe4 {[%emt 0:00:23]} Nf6 {
[%emt 0:01:52]} 10. Qe3 {[%emt 0:19:44]} b6 {[%emt 0:03:51]} 11. Be2 {[%emt 0:
00:00]} c5 {[%emt 0:04:43]} 12. O-O {[%emt 0:05:04]} Qc7 {[%emt 0:10:00]} 13.
dxc5 {[%emt 0:08:28]} bxc5 {[%emt 0:02:30]} 14. h3 {[%emt 0:02:03]} Bb7 {
[%emt 0:03:00]} 15. Rd1 {[%emt 0:05:50]} Rg8 {[%emt 0:14:50]} 16. Qa3 {[%emt 0:
00:00]} g5 {[%emt 0:09:10]} 17. Nxg5 {[%emt 0:06:06]} h6 {[%emt 0:02:32]} 18.
Nf3 {[%emt 0:01:40]} Ne4 {[%emt 0:01:06]} 19. Bxh6 {[%emt 0:15:20]} f5 {
[%emt 0:03:15]} 20. h4 {[%emt 0:02:23]} Qc6 {[%emt 0:07:38]} 21. Bg5 {[%emt 0:
00:00]} Bc7 {[%emt 0:03:32]} 22. Qe3 {[%emt 0:01:39]} e5 {[%emt 0:01:47]} 23.
Rd5 {[%emt 0:03:22]} Qe6 {[%emt 0:00:24]} 24. Rad1 {[%emt 0:01:02]} Bxd5 {
[%emt 0:00:16]} 25. cxd5 {[%emt 0:01:25]} Qd6 {[%emt 0:00:24]} 26. Bd3 {
[%emt 0:01:00]} Nxg5 {[%emt 0:00:25]} 27. Nxg5 {[%emt 0:00:44]} e4 {[%emt 0:00:
00]} 28. g3 {[%emt 0:01:17]} Bb6 {[%emt 0:01:13]} 29. Bc4 {[%emt 0:00:57]} Ke7
{[%emt 0:00:36]} 30. Kg2 {[%emt 0:00:18]} Raf8 {[%emt 0:00:23]} 31. f3 {
[%emt 0:00:50]} Bc7 {[%emt 0:00:34]} 0-1

[Event "44th Chess Olympiad Open 2022"]
[Site "Chennai"]
[Date "2022.08.02"]
[Round "5.39"]
[White "Mieles Palau, Daniel"]
[Black "Brahami, Lamine"]
[Result "1-0"]
[WhiteElo "2364"]
[BlackElo "2189"]
[Annotator "RC"]
[PlyCount "79"]
[EventDate "2022.??.??"]
[TimeControl "60"]

1. c4 {[%emt 0:00:03]} e5 {[%emt 0:00:21]} 2. g3 {[%emt 0:00:14]} Nc6 {[%emt 0:
00:00]} 3. Bg2 {[%emt 0:00:18]} g6 {[%emt 0:00:26]} 4. Nc3 {[%emt 0:02:27]} Bg7
{[%emt 0:01:09]} 5. Nf3 {[%emt 0:02:54]} d6 {[%emt 0:01:55]} 6. O-O {[%emt 0:
00:00]} Nf6 {[%emt 0:01:20]} 7. Rb1 {[%emt 0:00:46]} a5 {[%emt 0:02:00]} 8. a3
{[%emt 0:00:05]} O-O {[%emt 0:00:36]} 9. b4 {[%emt 0:00:06]} axb4 {[%emt 0:00:
00]} 10. axb4 {[%emt 0:00:04]} Bf5 {[%emt 0:01:12]} 11. d3 {[%emt 0:00:35]} Qd7
{[%emt 0:01:25]} 12. b5 {[%emt 0:10:54]} Nd4 {[%emt 0:07:04]} 13. Nh4 {[%emt 0:
00:00]} Bh3 {[%emt 0:09:37]} 14. Bxb7 {[%emt 0:02:29]} Bxf1 {[%emt 0:03:24]}
15. Bxa8 {[%emt 0:02:09]} Bxe2 {[%emt 0:00:26]} 16. Nxe2 {[%emt 0:00:06]} Nxe2+
{[%emt 0:01:34]} 17. Qxe2 {[%emt 0:00:05]} Rxa8 {[%emt 0:00:06]} 18. Bg5 {
[%emt 0:14:43]} Ra3 {[%emt 0:15:39]} 19. Ng2 {[%emt 0:09:06]} Ne8 {[%emt 0:00:
00]} 20. Bc1 {[%emt 0:04:53]} Ra5 {[%emt 0:06:01]} 21. Qf3 {[%emt 0:12:58]} h6
{[%emt 0:06:18]} 22. Ne3 {[%emt 0:07:22]} Nf6 {[%emt 0:02:11]} 23. Kg2 {
[%emt 0:02:05]} Kh7 {[%emt 0:02:37]} 24. Qb7 {[%emt 0:03:12]} Ra2 {[%emt 0:00:
00]} 25. h3 {[%emt 0:03:50]} Qd8 {[%emt 0:04:02]} 26. b6 {[%emt 0:00:23]} cxb6
{[%emt 0:01:49]} 27. Rxb6 {[%emt 0:04:07]} Kg8 {[%emt 0:00:28]} 28. Rc6 {
[%emt 0:00:53]} Qa5 {[%emt 0:01:33]} 29. Rc8+ {[%emt 0:01:44]} Bf8 {[%emt 0:00:
00]} 30. Qe7 {[%emt 0:00:55]} Nh7 {[%emt 0:01:56]} 31. Ng4 {[%emt 0:00:21]} g5
{[%emt 0:01:05]} 32. Rxf8+ {[%emt 0:03:31]} Nxf8 {[%emt 0:00:07]} 33. Nxh6+ {
[%emt 0:00:35]} Kg7 {[%emt 0:00:36]} 34. Nf5+ {[%emt 0:00:08]} Kg8 {[%emt 0:00:
00]} 35. Nh6+ {[%emt 0:00:05]} Kg7 {[%emt 0:00:05]} 36. Qxf7+ {[%emt 0:02:14]}
Kxh6 {[%emt 0:00:04]} 37. Qxf8+ {[%emt 0:00:09]} Kh7 {[%emt 0:00:32]} 38. Qf7+
{[%emt 0:00:02]} Kh6 {[%emt 0:01:10]} 39. h4 {[%emt 0:00:07]} Qa8+ {[%emt 0:00:
00]} 40. Kg1 {[%emt 0:00:47]} 1-0

[Event "44th Chess Olympiad Open 2022"]
[Site "Chennai"]
[Date "2022.08.02"]
[Round "5.39"]
[White "Nassr, Ali"]
[Black "Matamoros Franco, Carlos S."]
[Result "1/2-1/2"]
[WhiteElo "2263"]
[BlackElo "2459"]
[Annotator "RC"]
[PlyCount "62"]
[EventDate "2022.??.??"]
[TimeControl "60"]

1. d4 {[%emt 0:00:06]} Nf6 {[%emt 0:00:15]} 2. Nf3 {[%emt 0:00:23]} g6 {
[%emt 0:00:30]} 3. Bf4 {[%emt 0:00:13]} Bg7 {[%emt 0:00:06]} 4. e3 {[%emt 0:00:
00]} d6 {[%emt 0:00:42]} 5. h3 {[%emt 0:00:21]} O-O {[%emt 0:00:58]} 6. Be2 {
[%emt 0:04:00]} c5 {[%emt 0:04:30]} 7. c3 {[%emt 0:00:20]} Qb6 {[%emt 0:00:48]}
8. Qb3 {[%emt 0:01:53]} Be6 {[%emt 0:00:11]} 9. Qxb6 {[%emt 0:01:08]} axb6 {
[%emt 0:00:04]} 10. a3 {[%emt 0:00:16]} Bd7 {[%emt 0:00:06]} 11. Nbd2 {[%emt 0:
00:00]} Bc6 {[%emt 0:00:26]} 12. O-O {[%emt 0:01:48]} Nbd7 {[%emt 0:05:08]} 13.
Rfe1 {[%emt 0:08:30]} Rfe8 {[%emt 0:04:45]} 14. Bh2 {[%emt 0:05:40]} b5 {
[%emt 0:01:09]} 15. dxc5 {[%emt 0:15:45]} dxc5 {[%emt 0:01:12]} 16. Ne5 {
[%emt 0:00:44]} Nxe5 {[%emt 0:00:38]} 17. Bxe5 {[%emt 0:00:11]} Nd7 {[%emt 0:
00:00]} 18. Bxg7 {[%emt 0:05:56]} Kxg7 {[%emt 0:00:15]} 19. Red1 {[%emt 0:00:
00]} Red8 {[%emt 0:11:57]} 20. Nb3 {[%emt 0:12:10]} e5 {[%emt 0:17:26]} 21. c4
{[%emt 0:07:18]} bxc4 {[%emt 0:00:44]} 22. Bxc4 {[%emt 0:00:39]} Nb6 {[%emt 0:
00:00]} 23. Rxd8 {[%emt 0:00:26]} Rxd8 {[%emt 0:00:05]} 24. Be2 {[%emt 0:04:17]
} Na4 {[%emt 0:01:23]} 25. Na5 {[%emt 0:01:40]} Nxb2 {[%emt 0:08:44]} 26. Nxc6
{[%emt 0:00:34]} bxc6 {[%emt 0:00:04]} 27. Rc1 {[%emt 0:04:10]} Nd3 {[%emt 0:
00:00]} 28. Bxd3 {[%emt 0:00:35]} Rxd3 {[%emt 0:00:05]} 29. Rxc5 {[%emt 0:00:
00]} Rxa3 {[%emt 0:00:06]} 30. Rxc6 {[%emt 0:00:21]} Ra1+ {[%emt 0:00:07]} 31.
Kh2 {[%emt 0:00:09]} h5 {[%emt 0:00:06]} 1/2-1/2

[Event "44th Chess Olympiad Open 2022"]
[Site "Chennai"]
[Date "2022.08.02"]
[Round "5.39"]
[White "Djabri, Massinas"]
[Black "Noboa Silva, Kevin"]
[Result "1/2-1/2"]
[WhiteElo "2206"]
[BlackElo "2304"]
[Annotator "RC"]
[PlyCount "85"]
[EventDate "2022.??.??"]
[TimeControl "60"]

1. d4 {[%emt 0:00:08]} e6 {[%emt 0:00:12]} 2. c4 {[%emt 0:00:16]} Nf6 {[%emt 0:
00:00]} 3. Nf3 {[%emt 0:00:07]} Bb4+ {[%emt 0:00:14]} 4. Bd2 {[%emt 0:00:32]}
a5 {[%emt 0:00:05]} 5. a3 {[%emt 0:00:36]} Bxd2+ {[%emt 0:00:07]} 6. Qxd2 {
[%emt 0:00:07]} d6 {[%emt 0:00:14]} 7. Nc3 {[%emt 0:01:05]} Nbd7 {[%emt 0:00:
00]} 8. e3 {[%emt 0:05:34]} O-O {[%emt 0:02:13]} 9. Bd3 {[%emt 0:00:54]} e5 {
[%emt 0:00:54]} 10. O-O {[%emt 0:00:57]} Re8 {[%emt 0:01:12]} 11. Qc2 {[%emt 0:
00:00]} Qe7 {[%emt 0:06:52]} 12. Nd2 {[%emt 0:05:28]} c6 {[%emt 0:03:41]} 13.
b4 {[%emt 0:06:16]} Nf8 {[%emt 0:01:21]} 14. d5 {[%emt 0:10:41]} Bd7 {[%emt 0:
00:00]} 15. Rfb1 {[%emt 0:06:10]} axb4 {[%emt 0:02:30]} 16. Rxb4 {[%emt 0:00:
00]} Bc8 {[%emt 0:05:24]} 17. Bf5 {[%emt 0:07:57]} Qc7 {[%emt 0:14:15]} 18.
Bxc8 {[%emt 0:07:02]} Rexc8 {[%emt 0:00:49]} 19. Qb2 {[%emt 0:00:26]} cxd5 {
[%emt 0:10:06]} 20. Nxd5 {[%emt 0:00:23]} Nxd5 {[%emt 0:01:02]} 21. cxd5 {
[%emt 0:00:18]} Ra5 {[%emt 0:08:19]} 22. Rxb7 {[%emt 0:05:11]} Qd8 {[%emt 0:00:
00]} 23. e4 {[%emt 0:02:54]} Rac5 {[%emt 0:00:22]} 24. Nf1 {[%emt 0:03:23]} Rc2
{[%emt 0:04:48]} 25. Qb1 {[%emt 0:04:14]} Qh4 {[%emt 0:06:19]} 26. Qe1 {
[%emt 0:01:09]} Ng6 {[%emt 0:05:41]} 27. Ne3 {[%emt 0:05:28]} R2c5 {[%emt 0:00:
00]} 28. Nf5 {[%emt 0:07:57]} Qg5 {[%emt 0:00:46]} 29. Rb3 {[%emt 0:00:45]} h5
{[%emt 0:02:07]} 30. Rg3 {[%emt 0:00:37]} Qd8 {[%emt 0:08:11]} 31. h4 {[%emt 0:
00:00]} Rc2 {[%emt 0:01:10]} 32. a4 {[%emt 0:01:46]} R8c5 {[%emt 0:03:03]} 33.
Qd1 {[%emt 0:01:50]} Qb6 {[%emt 0:00:41]} 34. a5 {[%emt 0:00:31]} Qa7 {[%emt 0:
00:00]} 35. Qxh5 {[%emt 0:00:38]} Rc1+ {[%emt 0:00:53]} 36. Rxc1 {[%emt 0:00:
00]} Rxc1+ {[%emt 0:00:00]} 37. Kh2 {[%emt 0:00:09]} Qxf2 {[%emt 0:00:26]} 38.
Rb3 {[%emt 0:00:43]} Qg1+ {[%emt 0:01:16]} 39. Kg3 {[%emt 0:00:10]} Qe1+ {
[%emt 0:00:27]} 40. Kh2 {[%emt 0:00:07]} Qg1+ {[%emt 0:00:03]} 41. Kg3 {
[%emt 0:30:07]} Qe1+ {[%emt 0:30:38]} 42. Kh2 {[%emt 0:00:07]} Qg1+ {[%emt 0:
00:00]} 43. Kg3 {[%emt 0:00:04]} 1/2-1/2

[Event "44th Chess Olympiad Open 2022"]
[Site "Chennai"]
[Date "2022.08.02"]
[Round "5.39"]
[White "Esmeraldas Huachi, Anderson"]
[Black "Araoun, Saadi"]
[Result "1-0"]
[WhiteElo "2071"]
[BlackElo "2049"]
[Annotator "NA RC"]
[PlyCount "98"]
[EventDate "2022.??.??"]
[TimeControl "60"]

1. d4 {[%emt 0:00:05]} Nf6 {[%emt 0:00:06]} 2. c4 {[%emt 0:00:22]} g6 {[%emt 0:
00:00]} 3. Nc3 {[%emt 0:00:05]} Bg7 {[%emt 0:00:04]} 4. e4 {[%emt 0:00:07]} d6
{[%emt 0:00:06]} 5. Be2 {[%emt 0:00:13]} O-O {[%emt 0:00:30]} 6. Be3 {[%emt 0:
00:00]} e5 {[%emt 0:01:15]} 7. d5 {[%emt 0:00:06]} Na6 {[%emt 0:00:04]} 8. g4 {
[%emt 0:00:18]} Nc5 {[%emt 0:00:06]} 9. f3 {[%emt 0:00:15]} h5 {[%emt 0:03:05]}
10. h3 {[%emt 0:07:41]} a5 {[%emt 0:05:58]} 11. Qd2 {[%emt 0:00:35]} Nh7 {
[%emt 0:11:20]} 12. gxh5 {[%emt 0:01:41]} Qh4+ {[%emt 0:02:24]} 13. Bf2 {
[%emt 0:00:12]} Qxh5 {[%emt 0:01:46]} 14. f4 {[%emt 0:07:25]} Qh6 {[%emt 0:00:
00]} 15. fxe5 {[%emt 0:00:33]} Qxd2+ {[%emt 0:00:51]} 16. Kxd2 {[%emt 0:00:09]}
Bxe5 {[%emt 0:00:17]} 17. Bxc5 {[%emt 0:03:05]} dxc5 {[%emt 0:02:40]} 18. Nf3 {
[%emt 0:00:07]} Bf4+ {[%emt 0:01:52]} 19. Kc2 {[%emt 0:01:47]} Re8 {[%emt 0:00:
00]} 20. Rae1 {[%emt 0:02:07]} Nf6 {[%emt 0:03:13]} 21. Bd3 {[%emt 0:00:12]}
Nh5 {[%emt 0:02:00]} 22. e5 {[%emt 0:10:21]} Ng3 {[%emt 0:12:51]} 23. Rhg1 {
[%emt 0:12:32]} Bxh3 {[%emt 0:08:34]} 24. Ne4 {[%emt 0:06:44]} Nh5 {[%emt 0:00:
00]} 25. Neg5 {[%emt 0:03:38]} Bxg5 {[%emt 0:03:34]} 26. Nxg5 {[%emt 0:03:03]}
Nf4 {[%emt 0:01:34]} 27. e6 {[%emt 0:09:29]} Kg7 {[%emt 0:12:43]} 28. exf7 {
[%emt 0:06:18]} Rh8 {[%emt 0:01:56]} 29. Re7 {[%emt 0:04:21]} Kf6 {[%emt 0:00:
00]} 30. Rxc7 {[%emt 0:03:15]} Nxd3 {[%emt 0:02:45]} 31. Kxd3 {[%emt 0:00:12]}
Bf5+ {[%emt 0:00:02]} 32. Kc3 {[%emt 0:01:10]} Rh2 {[%emt 0:03:06]} 33. f8=Q+ {
[%emt 0:00:32]} Rxf8 {[%emt 0:00:23]} 34. Nh7+ {[%emt 0:00:06]} Rxh7 {[%emt 0:
00:00]} 35. Rxh7 {[%emt 0:00:07]} Rb8 {[%emt 0:01:25]} 36. Rc7 {[%emt 0:01:37]}
b6 {[%emt 0:00:06]} 37. Re1 {[%emt 0:01:16]} Kg5 {[%emt 0:00:38]} 38. Kb3 {
[%emt 0:01:28]} b5 {[%emt 0:00:46]} 39. Rxc5 {[%emt 0:00:21]} bxc4+ {[%emt 0:
00:00]} 40. Kc3 {[%emt 0:00:08]} a4 {[%emt 0:00:33]} 41. Rxc4 {[%emt 0:30:18]}
Ra8 {[%emt 0:30:26]} 42. d6 {[%emt 0:00:28]} Kf6 {[%emt 0:00:09]} 43. b4 {
[%emt 0:03:31]} Be6 {[%emt 0:00:00]} 44. Rd4 {[%emt 0:00:00]} a3 {[%emt 0:00:
00]} 45. b5 {[%emt 0:00:00]} Bd7 {[%emt 0:00:00]} 46. Kb4 {[%emt 0:00:00]} Rb8
{[%emt 0:00:00]} 47. Rd5 {[%emt 0:00:00]} Be6 {[%emt 0:00:00]} 48. d7 {[%emt 0:
00:00]} Rd8 {[%emt 0:00:00]} 49. Rd6 {[%emt 0:00:00]} Kf5 {[%emt 0:00:19]} 1-0

[Event "44th Chess Olympiad Open 2022"]
[Site "Chennai"]
[Date "2022.08.02"]
[Round "5.40"]
[White "Gourlay, Iain"]
[Black "Tagelsir, Abubaker"]
[Result "1-0"]
[WhiteElo "2321"]
[BlackElo "2232"]
[Annotator "RC"]
[PlyCount "89"]
[EventDate "2022.??.??"]
[TimeControl "60"]

1. d4 {[%emt 0:00:06]} Nf6 {[%emt 0:02:10]} 2. Nf3 {[%emt 0:00:21]} g6 {
[%emt 0:00:09]} 3. g3 {[%emt 0:00:16]} c5 {[%emt 0:00:40]} 4. dxc5 {[%emt 0:00:
00]} Na6 {[%emt 0:00:11]} 5. Be3 {[%emt 0:03:56]} Bg7 {[%emt 0:00:19]} 6. Bg2 {
[%emt 0:01:54]} O-O {[%emt 0:00:15]} 7. O-O {[%emt 0:00:56]} Ne4 {[%emt 0:00:
00]} 8. Bd4 {[%emt 0:03:24]} Nexc5 {[%emt 0:01:56]} 9. Bxg7 {[%emt 0:03:08]}
Kxg7 {[%emt 0:00:06]} 10. c4 {[%emt 0:10:27]} d6 {[%emt 0:06:52]} 11. Nc3 {
[%emt 0:02:03]} Rb8 {[%emt 0:08:03]} 12. Nd4 {[%emt 0:09:07]} Nc7 {[%emt 0:00:
00]} 13. b4 {[%emt 0:07:00]} N5e6 {[%emt 0:06:29]} 14. Rc1 {[%emt 0:05:27]} Kg8
{[%emt 0:02:01]} 15. Qd2 {[%emt 0:04:13]} a5 {[%emt 0:03:18]} 16. a3 {[%emt 0:
00:00]} axb4 {[%emt 0:00:05]} 17. axb4 {[%emt 0:00:06]} Na6 {[%emt 0:00:27]}
18. Nc2 {[%emt 0:07:59]} Ng7 {[%emt 0:03:54]} 19. Rfd1 {[%emt 0:01:12]} Bf5 {
[%emt 0:00:40]} 20. Nd5 {[%emt 0:03:48]} Nc7 {[%emt 0:04:42]} 21. Nde3 {
[%emt 0:02:55]} Be6 {[%emt 0:03:24]} 22. Nd4 {[%emt 0:01:34]} Na6 {[%emt 0:00:
00]} 23. c5 {[%emt 0:04:50]} dxc5 {[%emt 0:23:53]} 24. bxc5 {[%emt 0:00:26]}
Bd7 {[%emt 0:00:04]} 25. Qa2 {[%emt 0:03:24]} Ne6 {[%emt 0:07:32]} 26. Nxe6 {
[%emt 0:06:48]} Bxe6 {[%emt 0:00:13]} 27. Qa3 {[%emt 0:00:48]} Qe8 {[%emt 0:00:
00]} 28. c6 {[%emt 0:02:33]} Nc7 {[%emt 0:00:15]} 29. cxb7 {[%emt 0:00:29]} Nb5
{[%emt 0:00:05]} 30. Qb4 {[%emt 0:02:11]} Nd6 {[%emt 0:00:14]} 31. Rc7 {
[%emt 0:00:53]} Qd8 {[%emt 0:02:34]} 32. Qc5 {[%emt 0:00:44]} Qe8 {[%emt 0:00:
00]} 33. Bc6 {[%emt 0:01:17]} Qd8 {[%emt 0:00:04]} 34. Nd5 {[%emt 0:03:28]}
Bxd5 {[%emt 0:03:13]} 35. Bxd5 {[%emt 0:00:08]} Qe8 {[%emt 0:00:42]} 36. Bc6 {
[%emt 0:00:41]} Qd8 {[%emt 0:00:22]} 37. Rd7 {[%emt 0:00:33]} Qe8 {[%emt 0:00:
00]} 38. Qc2 {[%emt 0:03:53]} Nxb7 {[%emt 0:01:59]} 39. Rxb7 {[%emt 0:00:54]}
Qc8 {[%emt 0:00:11]} 40. Rxe7 {[%emt 0:00:27]} Rb6 {[%emt 0:00:11]} 41. Be4 {
[%emt 0:30:55]} Qa6 {[%emt 0:31:10]} 42. Rdd7 {[%emt 0:02:27]} Rf6 {[%emt 0:00:
00]} 43. Bd5 {[%emt 0:01:19]} Qa5 {[%emt 0:02:54]} 44. e3 {[%emt 0:00:00]} Rf5
{[%emt 0:00:00]} 45. Qa2 {[%emt 0:00:00]} 1-0

[Event "44th Chess Olympiad Open 2022"]
[Site "Chennai"]
[Date "2022.08.02"]
[Round "5.40"]
[White "Tate, Alan"]
[Black "Hamid Mohammed"]
[Result "1-0"]
[WhiteElo "2313"]
[BlackElo "2116"]
[Annotator "RC"]
[PlyCount "71"]
[EventDate "2022.??.??"]
[TimeControl "60"]

1. e4 {[%emt 0:02:19]} c5 {[%emt 0:00:07]} 2. Nf3 {[%emt 0:00:05]} g6 {[%emt 0:
00:00]} 3. c4 {[%emt 0:00:22]} Bg7 {[%emt 0:00:54]} 4. d4 {[%emt 0:00:05]} cxd4
{[%emt 0:00:53]} 5. Nxd4 {[%emt 0:00:05]} Nc6 {[%emt 0:00:07]} 6. Be3 {[%emt 0:
00:00]} Nf6 {[%emt 0:01:31]} 7. Nc3 {[%emt 0:01:30]} Ng4 {[%emt 0:02:59]} 8.
Qxg4 {[%emt 0:00:13]} Nxd4 {[%emt 0:00:08]} 9. Qd1 {[%emt 0:00:25]} e5 {
[%emt 0:02:40]} 10. Bd3 {[%emt 0:00:47]} O-O {[%emt 0:06:47]} 11. O-O {[%emt 0:
00:00]} d6 {[%emt 0:03:40]} 12. Qd2 {[%emt 0:05:52]} Be6 {[%emt 0:06:39]} 13.
Rad1 {[%emt 0:06:19]} Rc8 {[%emt 0:07:20]} 14. b3 {[%emt 0:02:59]} a6 {[%emt 0:
00:00]} 15. Bxd4 {[%emt 0:18:07]} exd4 {[%emt 0:00:08]} 16. Ne2 {[%emt 0:00:04]
} Rc5 {[%emt 0:07:08]} 17. Bb1 {[%emt 0:15:48]} Rh5 {[%emt 0:05:13]} 18. Nxd4 {
[%emt 0:11:43]} Bg4 {[%emt 0:24:04]} 19. f3 {[%emt 0:04:09]} Qh4 {[%emt 0:00:
00]} 20. fxg4 {[%emt 0:01:06]} Qxh2+ {[%emt 0:00:10]} 21. Kf2 {[%emt 0:00:04]}
Rh3 {[%emt 0:07:41]} 22. Ne2 {[%emt 0:08:55]} Be5 {[%emt 0:00:09]} 23. Rh1 {
[%emt 0:01:12]} Bg3+ {[%emt 0:03:31]} 24. Nxg3 {[%emt 0:00:25]} Qxg3+ {[%emt 0:
00:00]} 25. Kg1 {[%emt 0:00:13]} Rxh1+ {[%emt 0:00:19]} 26. Kxh1 {[%emt 0:00:
00]} Qxg4 {[%emt 0:00:03]} 27. Qd4 {[%emt 0:01:01]} d5 28. Qxd5 {[%emt 0:00:30]
} Re8 {[%emt 0:02:00]} 29. Qd6 {[%emt 0:05:49]} Re6 {[%emt 0:01:18]} 30. Kg1 {
[%emt 0:01:13]} Kg7 {[%emt 0:00:08]} 31. Qd4+ {[%emt 0:00:10]} Kg8 {[%emt 0:00:
00]} 32. c5 {[%emt 0:05:11]} h5 {[%emt 0:00:17]} 33. Qd8+ {[%emt 0:02:42]} Kg7
{[%emt 0:00:19]} 34. Rf1 {[%emt 0:00:28]} h4 {[%emt 0:01:05]} 35. Qd7 {[%emt 0:
00:00]} h3 {[%emt 0:02:48]} 36. Rxf7+ {[%emt 0:00:09]} 1-0